fUST/lending_fUST_20241230
["ID","MTS","AMOUNT","RATE_DAILY","PERIOD"]
[347182900,1735553447818,-500.0,0.00015241,2]
[347182901,1735553447827,-500.0,0.00015241,2]
[347182902,1735553447837,-500.0,0.00015241,2]
[347182903,1735553447845,-500.0,0.00015241,2]
[347182904,1735553447855,-500.0,0.00015241,2]
[347182905,1735553447864,-363.30281205,0.00015241,2]
[347182906,1735553447873,-500.0,0.00015241,2]
[347182907,1735553447883,-500.0,0.00015241,2]
[347182908,1735553447892,-500.0,0.00015241,2]
[347182909,1735553447901,-959.19,0.00015241,2]
[347182910,1735553447912,-500.0,0.00015241,2]
[347182911,1735553447921,-500.0,0.00015241,2]
[347182912,1735553447930,-500.0,0.00015241,2]
[347182913,1735553447939,-500.0,0.00015241,2]
[347182914,1735553447949,-851.2,0.00015241,2]
[347182915,1735553447958,-500.0,0.00015241,2]
[347182916,1735553447969,-500.0,0.00015241,2]
[347182917,1735553447978,-539.43231961,0.00015241,2]
[347182918,1735553447987,-604.26313156,0.00015241,2]
[347182919,1735553447996,-505.00294767,0.00015241,2]
[347182920,1735553448006,-500.0,0.00015241,2]
[347182921,1735553448015,-500.0,0.00015241,2]
[347182922,1735553448024,-500.0,0.00015241,2]
[347182923,1735553448034,-447.65174008,0.00015241,2]
[347182924,1735553448102,-500.0,0.00015241,2]
[347182925,1735553448112,-505.23739682,0.00015241,2]
[347182926,1735553448121,-500.75633386,0.00015241,2]
[347182927,1735553448131,-503.74446666,0.00015241,2]
[347182928,1735553448140,-500.0,0.00015241,2]
[347182929,1735553448150,-506.72027093,0.00015241,2]
[347182930,1735553448159,-661.65,0.00015241,2]
[347182931,1735553448169,-504.76634751,0.00015241,2]
[347182932,1735553448179,-500.0,0.00015241,2]
[347182933,1735553448189,-500.0,0.00015241,2]
[347182934,1735553448198,-500.0,0.0001525,2]
[347182935,1735553448207,-500.0,0.0001525,2]
[347182936,1735553448220,-500.0,0.0001525,2]
[347182937,1735553448229,-341.6483018,0.0001525,2]
[347182938,1735553448241,-151.0,0.00015264,2]
[347182939,1735553448251,-751.488954,0.00015264,2]
[347182940,1735553448260,-751.488954,0.00015264,2]
[347182941,1735553448269,-160.0,0.00015299,2]
[347182942,1735553448279,-500.0,0.00015299,2]
[347182943,1735553448288,-500.0,0.00015299,2]
[347182944,1735553448297,-500.0,0.00015299,2]
[347182945,1735553448307,-500.0,0.00015299,2]
[347182946,1735553448316,-661.65,0.00015299,2]
[347182947,1735553448326,-661.65,0.00015299,2]
[347182948,1735553448335,-46216.76642085,0.000153,2]
[347182949,1735553448345,-235.519799,0.000153,2]
[347182950,1735553448356,-235.519799,0.000153,2]
[347182951,1735553448365,-315.997811,0.000153,2]
[347182952,1735553448375,-315.997811,0.000153,2]
[347182953,1735553448385,-309.034682,0.000153,2]
[347182954,1735553448395,-309.034682,0.000153,2]
[347182955,1735553448405,-542.039691,0.000153,2]
[347182956,1735553448414,-313.251351,0.000153,2]
[347182957,1735553448424,-313.251351,0.000153,2]
[347182958,1735553448433,-542.039691,0.000153,2]
[347182959,1735553448443,-548.079337,0.000153,2]
[347182960,1735553448452,-548.079337,0.000153,2]
[347182961,1735553448463,-765.820995,0.000153,2]
[347182962,1735553448472,-765.820995,0.000153,2]
[347182963,1735553448482,-1057.78841,0.000153,2]
[347182964,1735553448491,-3010.081874,0.000153,2]
[347182965,1735553448500,-1057.78841,0.000153,2]
[347182966,1735553448510,-3010.081874,0.000153,2]
[347182967,1735553448519,-480.93937716,0.00015311,2]
[347182968,1735553448528,-500.0,0.00015311,2]
[347182969,1735553448537,-500.0,0.00015311,2]
[347182970,1735553448546,-500.0,0.00015311,2]
[347182971,1735553448555,-500.0,0.00015311,2]
[347182972,1735553448564,-1000.0,0.00015321,2]
[347182973,1735553448573,-661.65,0.00015386,2]
[347182974,1735553448583,-778.129999,0.00015398,2]
[347182975,1735553448592,-778.129999,0.00015398,2]
[347182976,1735553448601,-478.092112,0.00015398,2]
[347182977,1735553448610,-478.092112,0.00015398,2]
[347182978,1735553448620,-307.514572,0.00015458,2]
[347182979,1735553448629,-151.0,0.00015458,2]
[347182980,1735553448638,-307.514572,0.00015458,2]
[347182981,1735553448647,-151.0,0.00015458,2]
[347182982,1735553448656,-151.0,0.00015458,2]
[347182983,1735553448665,-151.0,0.00015458,2]
[347182984,1735553448674,-363.2904736,0.0001546,2]
[347182985,1735553448683,-557.09,0.00015483,2]
[347182986,1735553448694,-581.284,0.000155,2]
[347182987,1735553448703,-171.90349462,0.00015514,2]
[347182988,1735553448712,-500.0,0.00015514,2]
[347182989,1735553448722,-500.0,0.00015514,2]
[347182990,1735553448732,-648.74,0.00015514,2]
[347182991,1735553448742,-500.0,0.00015514,2]
[347182992,1735553448751,-500.0,0.00015514,2]
[347182993,1735553448760,-500.0,0.00015514,2]
[347182994,1735553448772,-404.99005429,0.00015514,2]
[347182995,1735553448781,-500.0,0.00015514,2]
[347182996,1735553448791,-899.57,0.00015514,2]
[347182997,1735553448799,-500.0,0.00015514,2]
[347182998,1735553448809,-500.0,0.00015514,2]
[347182999,1735553448818,-500.0,0.00015514,2]
[347183000,1735553448828,-1398.82,0.00015514,2]
[347183001,1735553448837,-500.0,0.00015514,2]
[347183002,1735553448846,-151.0,0.00015514,2]
[347183003,1735553448856,-500.0,0.00015514,2]
[347183004,1735553448865,-500.0,0.00015514,2]
[347183005,1735553448874,-503.34,0.00015514,2]
[347183006,1735553448883,-2678.1,0.00015514,2]
[347183007,1735553448893,-751.488954,0.00015514,2]
[347183008,1735553448903,-751.488954,0.00015514,2]
[347183009,1735553448912,-626.53,0.00015514,2]
[347183010,1735553448922,-372.83588,0.00015515,2]
[347183011,1735553448931,-372.83588,0.00015515,2]
[347183012,1735553448941,-151.0,0.00015515,2]
[347183013,1735553448950,-151.0,0.00015515,2]
[347183014,1735553448959,-929.392684,0.00015515,2]
[347183015,1735553448969,-929.392684,0.00015515,2]
[347183016,1735553448978,-151.0,0.00015515,2]
[347183017,1735553448988,-500.0,0.00015515,2]
[347183018,1735553448997,-824.606058,0.00015515,2]
[347183019,1735553449006,-824.606058,0.00015515,2]
[347183020,1735553449016,-500.0,0.00015515,2]
[347183021,1735553449025,-500.0,0.00015515,2]
[347183022,1735553449034,-500.0,0.00015515,2]
[347183023,1735553449044,-500.0,0.00015515,2]
[347183024,1735553449053,-500.0,0.00015515,2]
[347183025,1735553449062,-500.0,0.00015515,2]
[347183026,1735553449071,-500.0,0.00015515,2]
[347183027,1735553449081,-590.08609771,0.00015515,2]
[347183028,1735553449090,-503.65668775,0.00015515,2]
[347183029,1735553449099,-500.0,0.00015515,2]
[347183030,1735553449108,-959.19,0.00015515,2]
[347183031,1735553449117,-500.0,0.00015515,2]
[347183032,1735553449126,-500.0,0.00015515,2]
[347183033,1735553449135,-500.0,0.00015515,2]
[347183034,1735553449144,-500.0,0.00015515,2]
[347183035,1735553449154,-851.2,0.00015515,2]
[347183036,1735553449163,-500.0,0.00015515,2]
[347183037,1735553449172,-500.0,0.00015515,2]
[347183038,1735553449181,-500.0,0.00015515,2]
[347183039,1735553449191,-661.65,0.00015515,2]
[347183040,1735553449200,-500.0,0.00015515,2]
[347183041,1735553449209,-500.0,0.00015515,2]
[347183042,1735553449219,-661.65,0.00015516,2]
[347183043,1735553449228,-661.65,0.00015516,2]
[347183044,1735553449291,-315.997811,0.00015517,2]
[347183045,1735553449306,-315.997811,0.00015517,2]
[347183046,1735553449316,-309.034682,0.00015517,2]
[347183047,1735553449325,-309.034682,0.00015517,2]
[347183048,1735553449334,-2272.9686606,0.00015517,2]
[347183049,1735553449344,-542.039691,0.00015517,2]
[347183050,1735553449353,-542.039691,0.00015517,2]
[347183051,1735553449363,-765.820995,0.00015517,2]
[347183052,1735553449373,-765.820995,0.00015517,2]
[347183053,1735553449382,-1236.98825751,0.00015517,2]
[347183054,1735553449392,-1057.78841,0.00015517,2]
[347183055,1735553449401,-3010.081874,0.00015517,2]
[347183056,1735553449411,-1057.788419,0.00015517,2]
[347183057,1735553449420,-3010.08186788,0.00015517,2]
[347183058,1735553449429,-500.0,0.00015524,2]
[347183059,1735553449439,-500.0,0.00015524,2]
[347183060,1735553449449,-253.34557567,0.00015524,2]
[347183061,1735553449458,-778.129999,0.00015535,2]
[347183062,1735553449469,-778.129999,0.00015535,2]
[347183063,1735553449479,-151.0,0.00015535,2]
[347183064,1735553449489,-478.092112,0.00015535,2]
[347183065,1735553449499,-478.092112,0.00015535,2]
[347183066,1735553449508,-151.0,0.00015559,2]
[347183067,1735553449517,-151.0,0.00015559,2]
[347183068,1735553449527,-3657.18,0.000156,5]
[347183069,1735553449536,-17938.74622288,0.000156,2]
[347183070,1735553449546,-235.519799,0.000156,2]
[347183071,1735553449555,-235.519799,0.000156,2]
[347183072,1735553449564,-151.0,0.000156,2]
[347183073,1735553449574,-751.488954,0.000156,2]
[347183074,1735553449583,-751.488954,0.000156,2]
[347183075,1735553449592,-313.251351,0.000156,2]
[347183076,1735553449601,-313.251351,0.000156,2]
[347183077,1735553449611,-548.079337,0.000156,2]
[347183078,1735553449620,-548.079337,0.000156,2]
[347183079,1735553449629,-61702.98961222,0.000156,2]
[347183080,1735553449819,-500.0,0.00014113,2]
[347183081,1735553449828,-68.8341964,0.00014387,2]
[347183082,1735553450408,-500.0,0.00013332,2]
[347183083,1735553450418,-502.01120118,0.00014113,2]
[347183084,1735553450427,-433.54741425,0.00014387,2]
[347183085,1735553450436,-500.0,0.00014692,2]
[347183086,1735553450445,-500.0,0.00014692,2]
[347183087,1735553450455,-500.0,0.00014693,2]
[347183088,1735553450464,-2060.6118787,0.00014966,2]
[347183092,1735554204300,191.43045937,0.00012057,2]
[347183096,1735554386370,191.43045937,0.00012057,2]
[347183099,1735554429814,-827.0161649,0.00012183,2]
[347183100,1735554429839,-827.0161649,0.00012306,2]
[347183101,1735554429862,-191.43045937,0.00013231,2]
[347183102,1735554429887,-154.62353225,0.00013232,2]
[347183103,1735554429908,-437.27323516,0.00013232,2]
[347183104,1735554429932,-300.0,0.0001333,2]
[347183105,1735554429955,-387.9040041,0.00013331,2]
[347183106,1735554429978,-500.0,0.00013331,2]
[347183107,1735554430000,-500.0,0.00013331,2]
[347183108,1735554430022,-500.9652753,0.00013331,2]
[347183109,1735554430048,-500.59257375,0.00013331,2]
[347183110,1735554430071,-505.13617717,0.00013331,2]
[347183111,1735554430096,-500.83658906,0.00013331,2]
[347183112,1735554430119,-501.32656713,0.00013331,2]
[347183113,1735554430142,-500.0,0.00013331,2]
[347183114,1735554430166,-500.0,0.00013331,2]
[347183115,1735554430188,-500.0,0.00013331,2]
[347183116,1735554430211,-500.0,0.00013331,2]
[347183117,1735554430234,-500.0,0.00013331,2]
[347183118,1735554430256,-500.0,0.00013331,2]
[347183119,1735554430278,-500.0,0.00013331,2]
[347183120,1735554430301,-500.0,0.00013331,2]
[347183121,1735554430323,-500.68052591,0.00013331,2]
[347183122,1735554430345,-500.0,0.00013331,2]
[347183123,1735554430368,-500.0,0.00013331,2]
[347183124,1735554430392,-500.0,0.00013331,2]
[347183125,1735554430414,-501.89350369,0.00013331,2]
[347183126,1735554430532,-186.14776478,0.00013331,2]
[347183127,1735554430559,-500.0,0.00013331,2]
[347183128,1735554430586,-500.0,0.00013331,2]
[347183129,1735554430611,-500.0,0.00013331,2]
[347183130,1735554430635,-500.0,0.00013331,2]
[347183131,1735554430660,-500.0,0.00013331,2]
[347183132,1735554430684,-500.0,0.00013331,2]
[347183133,1735554430707,-500.0,0.00013331,2]
[347183134,1735554430733,-500.0,0.00013331,2]
[347183135,1735554430757,-375.63186919,0.00013331,2]
[347183136,1735554430781,-500.0,0.00013331,2]
[347183137,1735554430804,-500.0,0.00013331,2]
[347183138,1735554430828,-500.0,0.00013331,2]
[347183139,1735554430853,-500.0,0.00013331,2]
[347183140,1735554430876,-500.0,0.00013331,2]
[347183141,1735554430902,-523.74,0.00013331,2]
[347183142,1735554430926,-500.0,0.00013331,2]
[347183143,1735554430949,-500.0,0.00013331,2]
[347183144,1735554430974,-341.6483018,0.00013331,2]
[347183145,1735554430997,-500.0,0.00013331,2]
[347183146,1735554431020,-500.0,0.00013331,2]
[347183147,1735554431047,-500.0,0.00013331,2]
[347183148,1735554431070,-404.99005429,0.00013331,2]
[347183149,1735554431096,-500.0,0.00013331,2]
[347183150,1735554431121,-291.08,0.00013331,2]
[347183151,1735554431145,-500.0,0.00013332,2]
[347183152,1735554431167,-500.0,0.00013332,2]
[347183153,1735554431189,-500.0,0.00013332,2]
[347183154,1735554431214,-500.0,0.00013332,2]
[347183155,1735554431236,-298.66,0.00013332,2]
[347183156,1735554431258,-500.0,0.00013332,2]
[347183157,1735554431281,-500.0,0.00013332,2]
[347183158,1735554431304,-2364.17,0.00013332,2]
[347183159,1735554431329,-500.0,0.00013332,2]
[347183160,1735554431352,-504.02,0.00013332,2]
[347183161,1735554431374,-500.0,0.00013332,2]
[347183162,1735554431396,-500.0,0.00013332,2]
[347183163,1735554431418,-500.0,0.00013332,2]
[347183164,1735554431439,-500.0,0.00013332,2]
[347183165,1735554431460,-502.25796714,0.00013332,2]
[347183166,1735554431483,-500.0,0.00013332,2]
[347183167,1735554431506,-500.0,0.00013332,2]
[347183168,1735554431528,-627.28801396,0.00013332,2]
[347183169,1735554431550,-500.0,0.00013332,2]
[347183170,1735554431574,-502.73,0.00013332,2]
[347183171,1735554431598,-500.0,0.00013332,2]
[347183172,1735554431620,-508.37949936,0.00013332,2]
[347183173,1735554431644,-500.0,0.00013332,2]
[347183174,1735554431667,-500.0,0.00013332,2]
[347183175,1735554431690,-500.68935962,0.00013332,2]
[347183176,1735554431712,-500.0,0.00013332,2]
[347183177,1735554431736,-500.0,0.00013332,2]
[347183178,1735554431759,-501.29383098,0.00013332,2]
[347183179,1735554431782,-500.0,0.00013332,2]
[347183180,1735554431805,-504.60477394,0.00013332,2]
[347183181,1735554431828,-500.0,0.00013332,2]
[347183182,1735554431851,-500.0,0.00013332,2]
[347183183,1735554431876,-502.41933412,0.00013332,2]
[347183184,1735554431899,-500.0,0.00013332,2]
[347183185,1735554431921,-500.0,0.00013332,2]
[347183186,1735554431945,-500.0,0.00013332,2]
[347183187,1735554431969,-500.0,0.00013332,2]
[347183188,1735554431993,-500.85473831,0.00013332,2]
[347183189,1735554432018,-500.0,0.00013332,2]
[347183190,1735554432045,-500.0,0.00013332,2]
[347183191,1735554432070,-500.0,0.00013332,2]
[347183192,1735554432096,-500.0,0.00013332,2]
[347183193,1735554432123,-500.0,0.00013332,2]
[347183194,1735554432145,-500.0,0.00013332,2]
[347183195,1735554432171,-500.0,0.00013332,2]
[347183196,1735554432196,-500.0,0.00013332,2]
[347183197,1735554432222,-500.0,0.00013332,2]
[347183198,1735554432245,-500.0,0.00013332,2]
[347183199,1735554432269,-500.0,0.00013332,2]
[347183200,1735554432295,-500.0,0.00013332,2]
[347183201,1735554432319,-500.0,0.00013332,2]
[347183202,1735554432343,-1223.97,0.00013332,2]
[347183203,1735554432367,-500.0,0.00013332,2]
[347183204,1735554432392,-500.0,0.00013332,2]
[347183205,1735554432415,-500.0,0.00013332,2]
[347183206,1735554432438,-590.08609771,0.00013332,2]
[347183207,1735554432463,-500.0,0.00013332,2]
[347183208,1735554432486,-500.0,0.00013332,2]
[347183209,1735554432511,-807.96,0.00013332,2]
[347183210,1735554432533,-500.0,0.00013332,2]
[347183211,1735554432556,-573.29050356,0.00013332,2]
[347183212,1735554432578,-500.0,0.00013332,2]
[347183213,1735554432601,-500.0,0.00013332,2]
[347183214,1735554432623,-500.0,0.00013332,2]
[347183215,1735554432645,-500.0,0.00013332,2]
[347183216,1735554432668,-500.0,0.00013332,2]
[347183217,1735554432692,-500.0,0.00013332,2]
[347183218,1735554432714,-500.0,0.00013332,2]
[347183219,1735554432739,-626.53,0.00013332,2]
[347183220,1735554432762,-500.0,0.00013332,2]
[347183221,1735554432785,-500.0,0.00013332,2]
[347183222,1735554432809,-500.0,0.00013332,2]
[347183223,1735554432833,-604.26313156,0.00013332,2]
[347183224,1735554432855,-500.0,0.00013332,2]
[347183225,1735554432877,-500.0,0.00013332,2]
[347183226,1735554432900,-500.0,0.00013332,2]
[347183227,1735554432924,-505.00294767,0.00013332,2]
[347183228,1735554432949,-4527.43,0.00013332,2]
[347183229,1735554432971,-500.0,0.00013332,2]
[347183230,1735554432995,-500.0,0.00013332,2]
[347183231,1735554433019,-500.0,0.00013332,2]
[347183232,1735554433125,-500.0,0.00013332,2]
[347183233,1735554433148,-500.0,0.00013332,2]
[347183234,1735554433171,-500.0,0.00013332,2]
[347183235,1735554433195,-500.0,0.00013332,2]
[347183236,1735554433218,-501.70655797,0.00013332,2]
[347183237,1735554433240,-500.0,0.00013332,2]
[347183238,1735554433263,-456.45843739,0.00013332,2]
[347183239,1735554433288,-500.0,0.00013332,2]
[347183240,1735554433310,-500.0,0.00013332,2]
[347183241,1735554433337,-500.0,0.00013332,2]
[347183242,1735554433360,-500.0,0.00013332,2]
[347183243,1735554433384,-640.91,0.00013332,2]
[347183244,1735554433407,-500.0,0.00013332,2]
[347183245,1735554433429,-500.0,0.00013332,2]
[347183246,1735554433451,-500.0,0.00013332,2]
[347183247,1735554433474,-500.0,0.00013332,2]
[347183248,1735554433497,-500.0,0.00013332,2]
[347183249,1735554433522,-5843.93,0.00013332,2]
[347183250,1735554433546,-500.0,0.00013332,2]
[347183251,1735554433569,-500.0,0.00013332,2]
[347183252,1735554433593,-544.04,0.00013333,2]
[347183253,1735554433616,-500.0,0.00013333,2]
[347183254,1735554433639,-506.72027093,0.00013333,2]
[347183255,1735554433663,-578.94,0.00013333,2]
[347183256,1735554433686,-578.94,0.00013333,2]
[347183257,1735554433710,-578.94,0.00013333,2]
[347183258,1735554433736,-578.94,0.00013333,2]
[347183259,1735554433761,-578.94,0.00013333,2]
[347183260,1735554433786,-578.94,0.00013333,2]
[347183261,1735554433812,-578.94,0.00013333,2]
[347183262,1735554433837,-578.94,0.00013333,2]
[347183263,1735554433861,-578.94,0.00013333,2]
[347183264,1735554433887,-578.94,0.00013333,2]
[347183265,1735554433915,-578.94,0.00013333,2]
[347183266,1735554433940,-578.94,0.00013333,2]
[347183267,1735554433965,-578.94,0.00013333,2]
[347183268,1735554433989,-578.94,0.00013333,2]
[347183269,1735554434014,-578.94,0.00013333,2]
[347183270,1735554434042,-578.94,0.00013333,2]
[347183271,1735554434066,-578.94,0.00013333,2]
[347183272,1735554434093,-578.94,0.00013333,2]
[347183273,1735554434119,-49.48177303,0.00013333,2]
[347183274,1735554434289,827.0161649,0.00012061,2]
[347183283,1735554523314,-624.83544182,0.00013199,2]
[347183285,1735554523339,-500.0,0.00013331,2]
[347183286,1735554523365,-300.0,0.00013331,2]
[347183288,1735554523390,-193.31826107,0.00013331,2]
[347183289,1735554523441,-979.65173893,0.00013331,2]
[347183290,1735554523467,-567.71972979,0.00013331,2]
[347183291,1735554523492,-70.78223417,0.00013331,2]
[347183296,1735554548218,-429.21776583,0.00013331,2]
[347183298,1735554548245,-500.0,0.00013331,2]
[347183299,1735554548270,-500.0,0.00013331,2]
[347183300,1735554548295,-253.66208517,0.00013331,2]
[347183301,1735554548323,-46.33791483,0.00013331,2]
[347183302,1735554548347,-500.0,0.00013332,2]
[347183303,1735554548371,-447.65174008,0.00013332,2]
[347183304,1735554548395,-500.0,0.00013332,2]
[347183305,1735554548419,-42.63072256,0.00013332,2]
[347183408,1735554573415,-1747.26985557,0.00013331,2]
[347183409,1735554573477,-629.98014443,0.00013331,2]
[347183410,1735554573504,-457.36927744,0.00013332,2]
[347183411,1735554573529,-282.59897426,0.00013332,2]
[347183412,1735554598377,-500.0,0.00013331,2]
[347183413,1735554598402,-253.34557567,0.00013331,2]
[347183414,1735554598427,-217.40102574,0.00013332,2]
[347183415,1735554598458,-500.0,0.00013332,2]
[347183416,1735554598482,-338.8676192,0.00013332,2]
[347183417,1735554598511,-98.67724049,0.00013332,2]
[347183418,1735554598535,-500.0,0.00013332,2]
[347183419,1735554598558,-500.0,0.00013332,2]
[347183420,1735554598582,-53.66639836,0.00013332,2]
[347183445,1735554632195,-300.0,0.00013331,2]
[347183446,1735554632205,-470.36635617,0.00013331,2]
[347183447,1735554632217,-3868.41364383,0.00013331,2]
[347183448,1735554632227,-305.63905498,0.00013331,2]
[347183449,1735554632236,-811.78,0.00013331,2]
[347183450,1735554632245,-500.0,0.00013331,2]
[347183451,1735554632254,-500.0,0.00013331,2]
[347183452,1735554632264,-446.33360164,0.00013332,2]
[347183453,1735554632273,-500.0,0.00013332,2]
[347183454,1735554632282,-500.0,0.00013332,2]
[347183455,1735554632291,-500.0,0.00013332,2]
[347183456,1735554632301,-500.0,0.00013332,2]
[347183457,1735554632310,-500.0,0.00013332,2]
[347183459,1735554632319,-500.0,0.00013332,2]
[347183461,1735554632328,-500.0,0.00013332,2]
[347183463,1735554632337,-500.0,0.00013332,2]
[347183465,1735554632346,-500.0,0.00013332,2]
[347183467,1735554632356,-500.0,0.00013332,2]
[347183469,1735554632365,-500.0,0.00013332,2]
[347183471,1735554632375,-500.0,0.00013332,2]
[347183473,1735554632384,-181.07581186,0.00013332,2]
[347183522,1735554638172,-318.92418814,0.00013332,2]
[347183524,1735554638182,-500.0,0.00013332,2]
[347183526,1735554638192,-500.0,0.00013332,2]
[347183528,1735554638201,-500.0,0.00013332,2]
[347183530,1735554638211,-500.0,0.00013332,2]
[347183532,1735554638221,-500.0,0.00013332,2]
[347183534,1735554638230,-171.16080686,0.00013332,2]
[347183536,1735554638241,-253.17262533,0.00013332,2]
[347183538,1735554638251,-500.0,0.00013332,2]
[347183540,1735554638261,-500.0,0.00013332,2]
[347183542,1735554638271,-500.0,0.00013332,2]
[347183544,1735554638280,-500.0,0.00013332,2]
[347183546,1735554638290,-500.74400167,0.00013332,2]
[347183548,1735554638299,-403.5088034,0.00013332,2]
[347183550,1735554638311,-96.4911966,0.00013332,2]
[347183553,1735554638320,-500.0,0.00013332,2]
[347183555,1735554638329,-500.0,0.00013332,2]
[347183556,1735554638338,-500.0,0.00013332,2]
[347183559,1735554638348,-500.0,0.00013332,2]
[347183561,1735554638357,-500.0,0.00013332,2]
[347183562,1735554638366,-500.0,0.00013332,2]
[347183565,1735554638375,-500.0,0.00013332,2]
[347183567,1735554638385,-502.95219321,0.00013332,2]
[347183569,1735554638394,-500.0,0.00013332,2]
[347183571,1735554638403,-501.6522498,0.00013332,2]
[347183573,1735554638412,-500.0,0.00013332,2]
[347183575,1735554638422,-500.0,0.00013332,2]
[347183577,1735554638432,-500.0,0.00013332,2]
[347183579,1735554638443,-449.26523884,0.00013332,2]
[347190031,1735554867543,500.0,0.00021524,120]
[347190033,1735554966279,191.0,0.00025,120]
[347190036,1735555316940,-500.0,0.00024523,30]
[347190037,1735555316990,-500.0,0.00024523,30]
[347190038,1735555317042,-500.0,0.00024523,30]
[347190039,1735555317106,-500.0,0.00024523,30]
[347190040,1735555317249,-500.0,0.00024523,30]
[347190041,1735555317299,-500.0,0.00024523,30]
[347190042,1735555317347,-500.0,0.00024523,30]
[347190043,1735555317395,-500.0,0.00024523,30]
[347190044,1735555317454,-500.0,0.00024523,30]
[347190045,1735555317503,-926.61390932,0.00024523,30]
[347190046,1735555317552,-700.0,0.00024523,30]
[347190047,1735555317603,-700.0,0.00024523,30]
[347190048,1735555317652,-700.0,0.00024523,30]
[347190049,1735555317702,-700.0,0.00024523,30]
[347190050,1735555317752,-500.0,0.00024523,30]
[347190051,1735555317801,-700.0,0.00024523,30]
[347190052,1735555317855,-500.0,0.00024523,30]
[347190053,1735555317907,-700.0,0.00024523,30]
[347190054,1735555317959,-500.0,0.00024523,30]
[347190055,1735555318005,-700.0,0.00024523,30]
[347190056,1735555318055,-500.0,0.00024523,30]
[347190057,1735555318106,-700.0,0.00024523,30]
[347190058,1735555318152,-500.0,0.00024523,30]
[347190059,1735555318201,-506.41427113,0.00024523,30]
[347190060,1735555318247,-700.0,0.00024523,30]
[347190061,1735555318297,-700.0,0.00024523,30]
[347190062,1735555318346,-700.0,0.00024523,30]
[347190063,1735555318394,-700.0,0.00024523,30]
[347190064,1735555318444,-911.90157587,0.00024523,30]
[347190065,1735555318494,-15416.24788595,0.00025,30]
[347190066,1735555318540,-470.0,0.00025,30]
[347190067,1735555318588,-310.54214843,0.00026,30]
[347190068,1735555318639,-11833.19274874,0.00026,30]
[347190069,1735555318688,-500.0,0.00026,120]
[347190070,1735555318735,-897.58757879,0.00026,60]
[347190071,1735555318781,-3000.00000045,0.00026,30]
[347190072,1735555318830,-432.08972124,0.000261,60]
[347190073,1735555318877,-100655.65395927,0.00026348,30]
[347190074,1735555318930,-1113.83743708,0.0002661,30]
[347190075,1735555318983,-53753.14008398,0.00027,30]
[347190076,1735555319032,-405.33234,0.00027,120]
[347190077,1735555319085,-500.0,0.00027,120]
[347190078,1735555319132,-629.89314108,0.00027,120]
[347190079,1735555319181,-400.0,0.00027397,60]
[347190080,1735555319230,-593.928364,0.00027397,120]
[347190081,1735555319277,-6150.38351462,0.000275,30]
[347190082,1735555319327,-586.005,0.0002779,120]
[347190083,1735555319379,-500.0,0.00028,120]
[347190084,1735555319432,-52810.89543751,0.00028,30]
[347190085,1735555319484,-161699.80340911,0.00028,30]
[347190086,1735555319536,-500.0,0.00028,30]
[347190087,1735555319589,-500.0,0.00028,30]